bitfinex/quotes_SOLUSD_20251018
["timestamp","ask_amount","ask_price","bid_price","bid_amount"]
[1760825086082,106.23286024,187.51,187.48,5.33389441]
[1760825086662,102.77,187.51,187.48,5.33389441]
[1760825087666,102.77,187.51,187.47,18.66949016]
[1760825088871,102.77,187.51,187.47,19.33949016]
[1760825089381,102.1,187.51,187.48,0.67]
[1760825089577,102.1,187.51,187.47,22.1323504]
[1760825089783,102.1,187.51,187.49,0.67]
[1760825091275,102.1,187.51,187.5,5.33333333]
[1760825092789,102.1,187.51,187.5,9.46619357]
[1760825093178,102.1,187.51,187.5,6.00333333]
[1760825093381,0.67,187.54,187.5,5.33333333]
[1760825093594,0.67,187.54,187.5,6.00333333]
[1760825093796,105.56286024,187.55,187.5,6.00333333]
[1760825094095,106.23286024,187.55,187.5,6.00333333]
[1760825094596,4.13286024,187.54,187.5,6.00333333]
[1760825094796,3.46286024,187.51,187.45,26.34286024]
[1760825094995,4.13286024,187.5,187.45,5.33475593]
[1760825095295,4.13286024,187.5,187.45,6.00475593]
[1760825095296,0.67,187.49,187.45,6.00475593]
[1760825095498,0.67,187.49,187.45,5.33475593]
[1760825095874,0.67,187.49,187.45,6.00475593]
[1760825096896,0.67,187.51,187.45,5.33475593]
[1760825097101,3.46286024,187.5,187.47,5.3341868]
[1760825097396,4.13286024,187.5,187.47,5.3341868]
[1760825100201,3.58758255,187.52,187.43,0.67]
[1760825100202,3.46286024,187.48,187.43,0.67]
[1760825100400,106.23286024,187.47,187.42,5.33560986]
[1760825100610,3.46286024,187.45,187.42,5.33560986]
[1760825101192,3.46286024,187.45,187.41,6.00587117]
[1760825101193,4.13286024,187.45,187.41,6.00587117]
[1760825101500,3.46286024,187.44,187.41,5.33587117]
[1760825101700,4.13286024,187.44,187.4,5.33613458]
[1760825102207,4.13286024,187.44,187.4,6.00613458]
[1760825102698,4.13286024,187.43,187.39,5.5364317]
[1760825103004,4.13286024,187.42,187.39,5.5364317]
[1760825103181,4.13286024,187.42,187.39,0.2]
[1760825103381,102.1,187.45,187.39,0.2]
[1760825103382,4.13286024,187.41,187.39,0.2]
[1760825104300,4.13286024,187.4,187.39,0.2]
[1760825106613,33.75647521,187.44,187.39,0.87]
[1760825106790,3.46286024,187.43,187.39,6.20646037]
[1760825106990,37.21933545,187.44,187.39,6.24646037]
[1760825107191,37.91933545,187.44,187.39,6.24646037]
[1760825107403,0.7,187.43,187.39,6.24646037]
[1760825107690,22.88,187.44,187.39,5.53646037]
[1760825107886,102.1,187.45,187.41,3.46286024]
[1760825108110,102.1,187.44,187.4,3.46286024]
[1760825108324,0.7,187.43,187.39,8.99932061]
[1760825109195,105.56286024,187.44,187.39,9.70932061]
[1760825109395,106.26286024,187.44,187.39,9.70932061]
[1760825110191,3.46286024,187.42,187.39,0.2]
[1760825110717,4.16286024,187.41,187.39,0.2]
[1760825114014,102.1,187.4,187.39,0.2]
[1760825120916,102.1,187.4,187.39,6.20646405]
[1760825121118,102.1,187.4,187.39,9.66932429]
[1760825121721,102.1,187.4,187.39,6.20646405]
[1760825121897,102.1,187.44,187.39,23.01048443]
[1760825122096,102.1,187.44,187.4,4.13286024]
[1760825122315,102.1,187.44,187.42,5.33560986]
[1760825122505,102.1,187.44,187.43,0.67]
[1760825124220,102.1,187.44,187.41,5.33589456]
[1760825124399,102.1,187.44,187.41,6.00589456]
[1760825124604,4.16286024,187.43,187.39,5.53641937]
[1760825124818,4.16286024,187.42,187.39,5.53641937]
[1760825125118,3.46286024,187.42,187.39,5.53641937]
[1760825125324,3.46286024,187.42,187.39,6.20641937]
[1760825125526,3.46286024,187.43,187.39,6.20641937]
[1760825126699,3.46286024,187.43,187.4,6.0060827]
[1760825129915,3.46286024,187.43,187.4,0.67]
[1760825132007,3.46286024,187.43,187.39,5.53639521]
[1760825132207,3.46286024,187.43,187.39,6.20639521]
[1760825133024,4.16286024,187.43,187.39,6.20639521]
[1760825135116,4.16286024,187.42,187.39,0.2]
[1760825135999,3.46286024,187.42,187.39,5.53640601]
[1760825136204,105.56286024,187.44,187.4,0.67]
[1760825136416,105.56286024,187.44,187.39,8.99926625]
[1760825136417,102.1,187.44,187.41,0.67]
[1760825137428,102.1,187.44,187.41,9.46852235]
[1760825137606,102.1,187.44,187.42,0.67]
[1760825137808,102.1,187.44,187.43,0.67]
[1760825138601,102.1,187.44,187.41,9.46852235]
[1760825138807,102.1,187.44,187.42,0.67]
[1760825139426,102.1,187.44,187.42,6.00554152]
[1760825145333,102.1,187.44,187.42,5.33554152]
[1760825145841,102.1,187.44,187.42,6.01554152]
[1760825149137,102.1,187.44,187.4,5.33617929]
[1760825149138,0.68,187.43,187.4,5.33617929]
[1760825149315,0.68,187.42,187.4,5.33617929]
[1760825149515,105.56286024,187.44,187.4,5.33617929]
[1760825149516,106.24286024,187.44,187.4,5.33617929]
[1760825149716,0.68,187.43,187.4,5.33617929]
[1760825150826,0.68,187.42,187.4,5.33617929]
[1760825151025,105.56286024,187.44,187.4,5.33617929]
[1760825151026,0.68,187.41,187.4,5.33617929]
[1760825151721,4.27954765,187.43,187.4,5.33617929]
[1760825151922,0.68,187.43,187.4,5.33617929]
[1760825156238,0.68,187.43,187.4,6.01617929]
[1760825156946,105.56286024,187.44,187.4,6.01617929]
[1760825157127,106.24286024,187.44,187.4,6.01617929]
[1760825160052,105.56286024,187.44,187.4,6.01617929]
[1760825160347,0.68,187.43,187.4,6.01617929]
[1760825162251,105.56286024,187.44,187.4,6.01617929]
[1760825162449,106.24286024,187.44,187.4,6.01617929]
[1760825164253,105.56286024,187.44,187.4,6.01617929]
[1760825164549,106.24286024,187.44,187.4,6.01617929]
[1760825167362,102.1,187.43,187.4,6.01617929]
[1760825169356,102.77,187.43,187.4,6.01617929]
[1760825170754,102.1,187.43,187.4,6.05617929]
[1760825171736,102.77,187.43,187.4,6.05617929]
[1760825173159,102.77,187.43,187.4,5.33617929]
[1760825174258,102.77,187.43,187.4,6.00617929]
[1760825177671,102.77,187.43,187.4,5.33617929]
[1760825178884,102.77,187.43,187.4,6.00617929]
[1760825179460,0.71,187.42,187.39,5.53639169]
[1760825179653,0.71,187.42,187.39,6.20639169]
[1760825179848,102.1,187.43,187.39,6.20639169]
[1760825180052,102.1,187.43,187.4,0.67]
[1760825180269,102.1,187.43,187.41,0.67]
[1760825180667,102.1,187.43,187.4,0.67]
[1760825181258,3.60402871,187.42,187.4,6.00591457]
[1760825181464,102.1,187.43,187.4,6.00591457]
[1760825181862,102.1,187.43,187.41,0.67]
[1760825182058,102.1,187.43,187.4,6.00591457]
[1760825182785,102.1,187.43,187.41,0.67]
[1760825183171,102.1,187.43,187.42,0.67]
[1760825183477,102.1,187.43,187.42,5.33560986]
[1760825184468,102.1,187.43,187.41,5.33584808]
[1760825184672,0.71,187.42,187.39,0.2]
[1760825185179,102.1,187.43,187.39,0.87]
[1760825185378,102.81,187.43,187.39,0.87]
[1760825186382,102.81,187.43,187.39,6.2061815]
[1760825186584,102.1,187.43,187.4,0.67]
[1760825187371,102.1,187.43,187.39,22.34020188]
[1760825187577,102.1,187.43,187.4,0.67]
[1760825187777,102.1,187.43,187.41,0.67]
[1760825187988,102.1,187.43,187.4,0.67]
[1760825188487,102.1,187.43,187.41,5.33589456]
[1760825188687,102.81,187.43,187.41,5.33589456]
[1760825191071,102.1,187.43,187.41,5.33589456]
[1760825191690,102.1,187.43,187.42,0.67]
[1760825191991,102.1,187.43,187.41,5.33589456]
[1760825192380,102.1,187.43,187.41,6.00589456]
[1760825193790,102.1,187.43,187.4,5.33617929]
[1760825194171,102.81,187.43,187.4,5.33617929]
[1760825194577,102.81,187.43,187.4,6.00617929]
[1760825194772,102.81,187.43,187.4,5.33617929]
[1760825195093,4.31466192,187.42,187.4,5.33617929]
[1760825195272,0.71,187.42,187.4,5.33617929]
[1760825196288,102.1,187.43,187.4,5.33617929]
[1760825196471,3.60446686,187.42,187.4,5.33617929]
[1760825196668,102.81,187.43,187.4,5.33617929]
[1760825196898,3.60446575,187.42,187.4,5.33617929]
[1760825197190,102.81,187.43,187.4,5.33617929]
[1760825197392,3.60431059,187.42,187.4,5.33617929]
[1760825197587,102.81,187.43,187.4,5.33617929]
[1760825197787,3.6043108,187.42,187.4,5.33617929]
[1760825197988,102.81,187.43,187.4,6.00617929]
[1760825198187,3.60431015,187.42,187.4,6.00617929]
[1760825198393,102.1,187.43,187.4,6.00617929]
[1760825198699,3.60416106,187.42,187.4,6.00617929]
[1760825198889,102.1,187.43,187.4,6.00617929]
[1760825199086,3.60416084,187.42,187.4,6.00617929]
[1760825199395,102.1,187.43,187.4,6.00617929]
[1760825199597,3.60412095,187.42,187.4,6.00617929]
[1760825199777,102.81,187.43,187.4,6.00617929]
[1760825199978,3.6041214,187.42,187.4,6.00617929]
[1760825200202,102.81,187.43,187.4,6.00617929]
[1760825200398,3.60408217,187.42,187.4,6.00617929]
[1760825200599,102.81,187.43,187.4,6.00617929]
[1760825200781,3.60408217,187.42,187.4,6.00617929]
[1760825200988,102.1,187.43,187.4,6.00617929]
[1760825201187,3.60408261,187.42,187.4,6.00617929]
[1760825201391,102.1,187.43,187.4,6.00617929]
[1760825201698,3.60404465,187.42,187.4,6.00617929]
[1760825201901,102.1,187.43,187.4,6.00617929]
[1760825202087,3.60400773,187.42,187.4,6.00617929]
[1760825202288,102.1,187.43,187.4,6.00617929]
[1760825202483,3.60400477,187.42,187.4,6.00617929]
[1760825202693,102.1,187.43,187.4,6.00617929]
[1760825202893,3.6040052,187.42,187.4,6.00617929]
[1760825203104,102.81,187.43,187.4,6.00617929]
[1760825203398,3.60400269,187.42,187.4,6.00617929]
[1760825203602,102.1,187.43,187.4,6.00617929]
[1760825203803,3.60400335,187.42,187.4,6.00617929]
[1760825203981,102.1,187.43,187.4,6.00617929]
[1760825204184,3.60400313,187.42,187.4,6.00617929]
[1760825204502,102.1,187.43,187.4,5.33617929]
[1760825204503,102.78,187.43,187.4,5.33617929]
[1760825204797,3.60400097,187.42,187.4,5.33617929]
[1760825205003,102.78,187.43,187.4,5.33617929]
[1760825205203,3.6040014,187.42,187.4,5.33617929]
[1760825205404,102.1,187.43,187.4,6.04617929]
[1760825205702,3.60402883,187.42,187.4,6.04617929]
[1760825205904,102.1,187.43,187.4,6.04617929]
[1760825206091,3.60402905,187.42,187.4,6.04617929]
[1760825206291,102.1,187.43,187.4,6.04617929]
[1760825206493,3.60402767,187.42,187.4,6.04617929]
[1760825206695,102.1,187.43,187.4,6.04617929]
[1760825207002,102.1,187.43,187.41,0.71]
[1760825208400,102.1,187.43,187.42,5.33560986]
[1760825208595,105.7036824,187.43,187.42,5.33560986]
[1760825209197,102.1,187.43,187.42,5.33560986]
[1760825209588,102.78,187.48,187.42,9.5084701]
[1760825209809,3.60334166,187.47,187.43,4.17286024]
[1760825210103,3.60334166,187.47,187.42,21.37881957]
[1760825210104,3.60334166,187.46,187.44,4.17286024]
[1760825210297,102.1,187.48,187.45,0.71]
[1760825210505,3.60250044,187.47,187.46,5.33447135]
[1760825210691,3.60250044,187.47,187.46,6.04447135]
[1760825211287,3.60250044,187.47,187.46,5.33447135]
[1760825211901,102.1,187.48,187.46,9.50733159]
[1760825212101,102.1,187.48,187.47,4.17286024]
[1760825213216,3.46286024,187.53,187.47,4.17286024]
[1760825213217,4.14286024,187.53,187.47,4.17286024]
[1760825213416,3.59647589,187.52,187.47,3.46286024]
[1760825213713,3.59647589,187.52,187.48,6.04390228]
[1760825213714,3.59647589,187.51,187.48,6.04390228]
[1760825213908,0.68,187.52,187.48,6.04390228]
[1760825214110,3.59647589,187.51,187.48,6.04390228]
[1760825214310,0.68,187.52,187.48,6.04390228]
[1760825214511,3.5950502,187.51,187.48,6.04390228]
[1760825214709,0.68,187.52,187.48,6.04390228]
[1760825214919,3.59504998,187.51,187.48,6.04390228]
[1760825215112,0.68,187.52,187.49,6.04338349]
[1760825215293,3.59385001,187.51,187.49,5.33338349]
[1760825215498,0.68,187.52,187.49,5.33338349]
[1760825215814,3.59385044,187.51,187.49,5.33338349]
[1760825216118,0.68,187.52,187.49,5.33338349]
[1760825216414,27.02286024,187.54,187.5,0.71]
[1760825216615,3.59281173,187.53,187.51,0.71]
[1760825216918,26.34286024,187.54,187.51,0.71]
[1760825216919,105.69281173,187.52,187.51,0.71]
[1760825218297,102.1,187.52,187.51,0.71]
[1760825218600,102.1,187.52,187.51,6.0430489]
[1760825219398,102.1,187.52,187.51,9.50590914]
[1760825220617,102.1,187.57,187.51,22.8385314]
[1760825220920,3.5889921,187.56,187.53,3.46286024]
[1760825221111,3.5889921,187.56,187.54,0.71]
[1760825221416,4.14286024,187.61,187.55,3.46286024]
[1760825221619,3.58562818,187.6,187.56,0.71]
[1760825221821,3.58562818,187.6,187.55,3.46286024]
[1760825222022,4.26562818,187.6,187.56,0.71]
[1760825222403,0.68,187.6,187.56,0.71]
[1760825222809,4.14286024,187.6,187.56,6.04144568]
[1760825223212,3.58562818,187.61,187.57,0.71]
[1760825223415,3.58562819,187.62,187.58,0.71]
[1760825223609,1e-08,187.62,187.59,0.71]
[1760825223806,1e-08,187.62,187.59,4.17286024]
[1760825224220,1e-08,187.62,187.6,0.71]
[1760825224828,1e-08,187.62,187.61,6.04020627]
[1760825225216,1e-08,187.62,187.61,0.71]
[1760825225516,1e-08,187.62,187.6,5.33048173]
[1760825225722,1e-08,187.62,187.6,6.04048173]
[1760825226428,1e-08,187.62,187.61,0.72]
[1760825226720,1e-08,187.62,187.61,6.05020627]
[1760825236905,1e-08,187.62,187.61,9.51306651]
[1760825239828,1e-08,187.62,187.61,25.53742353]
[1760825240012,1e-08,187.62,187.61,9.51306651]
[1760825240913,1e-08,187.62,187.61,6.05020627]
[1760825241115,1e-08,187.62,187.61,9.51306651]
[1760825249445,1e-08,187.62,187.61,36.43306651]
[1760825249742,1e-08,187.62,187.61,9.51306651]
[1760825250145,1e-08,187.62,187.61,36.43306651]
[1760825250339,1e-08,187.62,187.61,9.51306651]
[1760825250745,1e-08,187.62,187.61,36.43306651]
[1760825251340,1e-08,187.62,187.61,9.51306651]
[1760825251540,1e-08,187.62,187.61,36.43306651]
[1760825251725,1e-08,187.62,187.61,9.51306651]
[1760825252840,1e-08,187.62,187.61,36.43306651]
[1760825253147,1e-08,187.62,187.61,9.51306651]
[1760825255555,1e-08,187.62,187.61,36.43306651]
[1760825255751,1e-08,187.62,187.61,9.51306651]
[1760825256538,1e-08,187.62,187.61,36.43306651]
[1760825256856,1e-08,187.62,187.61,9.51306651]
[1760825258355,1e-08,187.62,187.61,36.43306651]
[1760825258558,1e-08,187.62,187.61,9.51306651]
[1760825260855,1e-08,187.62,187.61,20.38954172]
[1760825261062,1e-08,187.62,187.61,47.30954172]
[1760825261367,1e-08,187.62,187.61,49.44589443]
[1760825261963,1e-08,187.62,187.61,22.52589443]
[1760825262261,1e-08,187.62,187.61,49.44589443]
[1760825262837,1e-08,187.62,187.61,22.52589443]
[1760825263069,1e-08,187.62,187.61,49.44589443]
[1760825263265,1e-08,187.62,187.61,22.52589443]
[1760825263766,1e-08,187.62,187.61,49.44589443]
[1760825264162,1e-08,187.62,187.61,22.52589443]
[1760825264464,1e-08,187.62,187.61,49.44589443]
[1760825265150,1e-08,187.62,187.61,22.52589443]
[1760825265353,1e-08,187.62,187.61,49.44589443]
[1760825265863,1e-08,187.65,187.64,33.75647521]
[1760825266072,1e-08,187.65,187.64,64.13933545]
[1760825266256,1e-08,187.65,187.64,43.24868953]
[1760825266563,1e-08,187.65,187.64,45.38469999]
[1760825266953,1e-08,187.65,187.64,72.30469999]
[1760825267260,1e-08,187.65,187.64,45.38469999]
[1760825267451,1e-08,187.65,187.64,72.28469999]
[1760825267849,1e-08,187.65,187.64,45.38469999]
[1760825268243,1e-08,187.65,187.56,40.26222635]
[1760825268244,0.67,187.65,187.57,5.95055442]
[1760825268460,0.67,187.65,187.58,8.79391898]
[1760825268461,0.67,187.64,187.58,8.79391898]
[1760825268772,43.57685915,187.69,187.57,5.33133373]
[1760825268773,3.46286024,187.62,187.57,5.33133373]
[1760825268954,3.46286024,187.6,187.54,16.79270454]
[1760825269143,3.46286024,187.59,187.55,5.33164377]
[1760825269346,0.67,187.58,187.55,5.33164377]
[1760825269666,0.67,187.57,187.55,5.33164377]
[1760825269867,3.46286024,187.59,187.55,5.33164377]
[1760825269868,0.67,187.56,187.55,5.33164377]
[1760825270070,0.67,187.56,187.54,5.33219579]
[1760825270270,0.67,187.55,187.54,5.33219579]
[1760825271601,0.67,187.55,187.48,26.96]
[1760825271602,4.13286024,187.55,187.45,26.67365712]
[1760825271899,0.67,187.54,187.49,3.46286024]
[1760825272195,0.67,187.57,187.53,3.46286024]
[1760825272493,0.67,187.57,187.54,3.46286024]
[1760825273099,0.67,187.56,187.55,5.33191149]
[1760825274395,0.67,187.58,187.55,3.46286024]
[1760825274704,0.67,187.57,187.55,3.46286024]
[1760825275361,0.67,187.57,187.55,8.79459319]
[1760825275566,0.67,187.57,187.55,5.33173295]
[1760825276696,0.67,187.57,187.54,8.79503952]
[1760825276895,0.67,187.57,187.54,5.33217928]
[1760825277068,0.67,187.57,187.54,8.79503952]
[1760825279283,0.67,187.59,187.54,8.79503952]
[1760825279481,3.46286024,187.6,187.54,8.79503952]
[1760825279482,0.67,187.58,187.54,8.79503952]
[1760825280475,3.46286024,187.6,187.54,8.79503952]
[1760825280674,4.13286024,187.59,187.54,8.79503952]
[1760825280888,27.01286024,187.61,187.55,4.16286024]
[1760825281192,3.46286024,187.61,187.55,3.46286024]
[1760825281389,0.67,187.6,187.55,3.46286024]
[1760825281576,0.67,187.59,187.54,8.79503952]
[1760825281779,0.67,187.58,187.54,5.33217928]
[1760825281977,0.67,187.57,187.54,5.33217928]
[1760825282184,0.67,187.56,187.54,5.33217928]
[1760825282696,3.46286024,187.58,187.53,5.33246457]
[1760825282997,4.13286024,187.57,187.53,5.33246457]
[1760825283195,0.67,187.56,187.53,5.33246457]
[1760825285484,3.46286024,187.57,187.53,5.33246457]
[1760825285685,0.67,187.56,187.53,5.33246457]
[1760825287294,0.67,187.56,187.51,22.12794166]
[1760825287492,0.67,187.56,187.51,22.77794166]
[1760825288187,0.67,187.56,187.51,22.12794166]
[1760825288395,0.67,187.56,187.53,5.33248013]
[1760825291094,4.12286024,187.57,187.53,0.65]
[1760825291801,3.46286024,187.57,187.52,8.79562474]
[1760825292098,0.66,187.56,187.52,9.44562474]
[1760825292400,4.12286024,187.57,187.53,0.65]
[1760825292697,3.46286024,187.57,187.52,8.79562474]
[1760825292906,0.66,187.56,187.52,9.44562474]
[1760825294304,3.46286024,187.57,187.52,8.79562474]
[1760825294499,4.14286024,187.57,187.53,0.68]
[1760825294999,4.14286024,187.57,187.53,6.01237873]
[1760825295191,0.68,187.57,187.53,6.01237873]
[1760825297311,102.1,187.59,187.56,0.68]
[1760825297500,102.1,187.58,187.56,0.68]
[1760825298703,102.1,187.58,187.54,3.46286024]
[1760825298704,106.24286024,187.58,187.54,5.33214155]
[1760825298909,0.68,187.57,187.54,5.33214155]
[1760825300009,106.24286024,187.58,187.54,6.01214155]
[1760825303309,102.1,187.57,187.54,6.01214155]
[1760825306012,102.78,187.57,187.54,6.01214155]
[1760825306213,102.1,187.57,187.54,6.01214155]
[1760825306389,0.68,187.56,187.54,5.33214155]
[1760825307213,102.1,187.57,187.54,5.33214155]
[1760825307389,102.78,187.57,187.54,5.33214155]
[1760825308908,102.78,187.57,187.53,9.47529407]
[1760825309212,102.78,187.56,187.53,5.33243383]
[1760825309414,102.78,187.56,187.53,6.01243383]
[1760825309617,102.1,187.56,187.53,6.01243383]
[1760825310822,0.68,187.55,187.53,5.33243383]
[1760825311000,0.68,187.54,187.53,5.33243383]
[1760825311206,0.68,187.54,187.52,5.33268982]
[1760825312095,102.1,187.53,187.51,22.88]
[1760825312412,0.68,187.52,187.48,4.14286024]
[1760825312613,0.68,187.52,187.48,27.02286024]
[1760825312825,0.68,187.52,187.49,0.68]
[1760825313007,102.78,187.53,187.49,0.68]
[1760825313514,102.78,187.53,187.5,5.33333333]
[1760825314512,0.68,187.52,187.49,5.33361779]
[1760825314815,0.68,187.51,187.49,5.33361779]
[1760825316206,3.46286024,187.52,187.46,3.46286024]
[1760825316412,0.68,187.5,187.46,9.47732896]
[1760825316716,102.78,187.51,187.47,0.68]
[1760825317215,102.78,187.5,187.45,28.21472587]
[1760825317422,102.1,187.5,187.46,0.68]
[1760825317614,0.68,187.49,187.46,0.68]
[1760825318517,102.1,187.5,187.46,0.68]
[1760825318699,102.78,187.5,187.46,6.01424364]
[1760825318899,102.1,187.49,187.46,6.01424364]
[1760825319101,102.1,187.49,187.46,9.47710388]
[1760825320299,102.1,187.49,187.47,4.14286024]
[1760825320598,102.1,187.49,187.48,3.46286024]
[1760825322009,102.1,187.49,187.47,9.47689081]
[1760825324830,102.1,187.49,187.48,4.16286024]
[1760825325130,102.1,187.49,187.48,3.46286024]
[1760825325319,102.1,187.49,187.48,8.79676252]
[1760825326721,102.1,187.49,187.48,5.33390228]
[1760825337527,102.1,187.49,187.48,6.03390228]
[1760825338722,102.1,187.49,187.48,5.33390228]
[1760825339441,102.1,187.49,187.48,8.79676252]
[1760825339631,102.1,187.49,187.48,9.49676252]
[1760825340518,102.1,187.53,187.48,22.83151822]
[1760825340722,102.1,187.53,187.52,3.46286024]
[1760825340938,102.1,187.53,187.52,4.16286024]
[1760825341133,0.7,187.57,187.52,4.16286024]
[1760825341453,22.88,187.56,187.53,4.16286024]
[1760825341946,0.7,187.56,187.53,3.46286024]
[1760825342232,3.58935005,187.58,187.55,3.46286024]
[1760825342638,4.28935005,187.58,187.55,5.33182365]
[1760825342940,4.28935005,187.58,187.54,9.49502879]
[1760825346020,4.28935005,187.58,187.54,8.79502879]
[1760825346225,4.28935005,187.58,187.55,0.7]
[1760825346542,4.28935005,187.58,187.55,0.69]
[1760825347940,0.7,187.58,187.55,6.02172633]
[1760825350257,105.56286024,187.59,187.55,6.02172633]
[1760825350438,106.24286024,187.59,187.55,6.02172633]
[1760825350639,102.1,187.58,187.56,0.69]
[1760825351361,102.1,187.58,187.57,0.69]
[1760825351736,102.1,187.58,187.57,0.19]
[1760825352449,102.1,187.58,187.55,8.79458657]
[1760825353655,102.1,187.58,187.56,6.04141708]
[1760825356160,0.72,187.57,187.55,5.33189938]
[1760825356366,102.1,187.58,187.55,5.33189938]
[1760825356566,0.72,187.56,187.55,5.33189938]
[1760825357143,0.72,187.56,187.54,5.33219579]
[1760825357573,102.82,187.58,187.54,6.04219579]
[1760825357883,0.72,187.57,187.54,6.04219579]
[1760825358357,0.72,187.57,187.54,9.50505603]
[1760825358952,0.72,187.57,187.54,8.79505603]
[1760825360257,0.72,187.57,187.54,9.50505603]
[1760825361678,102.1,187.58,187.55,0.71]
[1760825361868,102.1,187.58,187.56,3.46286024]
[1760825362068,102.1,187.58,187.57,0.71]
[1760825362262,102.1,187.58,187.56,4.17286024]
[1760825362793,102.1,187.58,187.57,5.33134296]
[1760825363782,102.82,187.58,187.57,5.33134296]
[1760825364794,102.1,187.58,187.57,5.33134296]
[1760825366092,102.1,187.58,187.56,5.33162721]
[1760825366294,102.1,187.58,187.56,6.04162721]
[1760825366687,102.82,187.58,187.56,5.33162721]
[1760825366998,102.1,187.58,187.56,5.33162721]
[1760825367294,102.82,187.58,187.56,5.33162721]
[1760825370491,102.1,187.58,187.56,5.33162721]
[1760825370693,102.82,187.58,187.56,5.33162721]
[1760825371087,7.3,187.61,187.57,4.17286024]
[1760825371287,7.3,187.61,187.58,0.71]
[1760825371500,8.02,187.61,187.58,0.71]
[1760825371687,7.3,187.61,187.59,0.71]
[1760825371887,7.3,187.61,187.6,0.71]
[1760825372080,7.3,187.61,187.58,3.46286024]
[1760825372277,7.3,187.61,187.59,0.71]
[1760825372477,0.72,187.6,187.56,5.33162721]
[1760825372703,102.82,187.59,187.56,5.33162721]
[1760825373001,0.72,187.58,187.55,5.33191149]
[1760825373388,0.72,187.58,187.55,6.04191149]
[1760825375410,0.72,187.58,187.55,9.50477173]
[1760825376497,102.1,187.59,187.57,5.33134296]
[1760825376703,102.82,187.59,187.57,5.33134296]
[1760825376912,102.1,187.59,187.58,4.17286024]
[1760825378397,102.1,187.59,187.58,43.08149807]
[1760825378594,102.1,187.59,187.58,48.41255681]
[1760825380230,0.72,187.65,187.58,61.74020368]
[1760825380438,0.72,187.65,187.62,3.46286024]
[1760825380719,7.05131777,187.67,187.61,3.46286024]
[1760825380918,0.72,187.65,187.61,3.46286024]
[1760825381221,0.72,187.64,187.61,4.17286024]
[1760825382099,0.72,187.64,187.62,5.32992218]
[1760825382426,0.72,187.66,187.62,6.03992218]
[1760825382602,0.72,187.65,187.62,6.03992218]
[1760825383726,0.72,187.65,187.62,5.32992218]
[1760825384226,7.05131777,187.66,187.62,5.32992218]
[1760825384431,0.69,187.65,187.62,5.32992218]
[1760825385516,0.69,187.65,187.62,6.03992218]
[1760825387406,3.58845753,187.67,187.62,9.50278242]
[1760825387616,0.69,187.66,187.62,9.50278242]
[1760825388017,0.69,187.66,187.63,3.46286024]
[1760825388322,105.56286024,187.68,187.64,6.03935408]
[1760825388536,0.69,187.67,187.64,6.03935408]
[1760825388912,102.1,187.68,187.64,8.79221432]
[1760825389106,102.79,187.68,187.64,9.50221432]
[1760825389301,102.1,187.68,187.65,0.71]
[1760825389517,102.1,187.68,187.65,3.46286024]
[1760825389727,102.1,187.68,187.66,0.71]
[1760825390315,102.1,187.68,187.66,5.32868208]
[1760825390725,102.79,187.68,187.66,5.32868208]
[1760825391521,102.1,187.68,187.66,5.32868208]
[1760825391721,102.1,187.68,187.66,6.03868208]
[1760825393538,102.79,187.68,187.66,5.32868208]
[1760825395032,0.69,187.67,187.65,5.32900311]
[1760825395615,0.69,187.67,187.64,5.32935408]
[1760825395815,0.69,187.67,187.64,6.03935408]
[1760825396228,0.69,187.66,187.63,8.79245056]
[1760825396437,0.69,187.65,187.63,5.32959032]
[1760825397519,3.46286024,187.67,187.63,5.32959032]
[1760825397714,4.15286024,187.66,187.63,5.32959032]
[1760825397915,0.69,187.65,187.63,5.32959032]
[1760825399117,0.69,187.67,187.63,6.03959032]
[1760825399542,0.69,187.66,187.63,9.50245056]